Cogmind - Beta 11 @@@ ROGUE MODE // 2022.04.02 @ 17:53:42 Player: zapruda Result: Destroyed by Y-54 Guardian with Gatling Laser Performance ------------- Evolutions (3) 1500 Regions Visited (7) 1400 Robots Destroyed (119) 595 Value Destroyed (4776) 4776 Prototype IDs (14) 280 Alien Tech Used (0) 0 Bonus (1919) 1919 TOTAL SCORE: 10470 Bonus ------- High Alert Combat Kills 363 Follower Combat Kills 600 Entered Garrisons 400 Used RIF Installer 1000 Friendly Fire -444 Cogmind --------- Core Integrity 0/700 Matter 290/300 Energy 290/290 System Corruption 21% Temperature Cool (6) Movement Treading (225) Ox1 Location -7/Garrison Parts ------- > --- POWER (1) -------- Reinforced Deuterium Engine > --- PROPULSION (2) --- Advanced Treads > --- UTILITY (7) ------ Improved Cooling System Large Storage Unit Advanced Targeting Computer Relay Coupler [NC] (29) Relay Coupler [Grunt] (8) Relay Coupler [Sentry] (10) Relay Coupler [Hunter] (2) > --- WEAPON (3) ------- Improved Spread Laser > --- INVENTORY (15) --- Improved Terrain Scan Processor Core Analyzer Weapon Cycler Transmission Jammer Relay Coupler [Swarmer] (41) Relay Coupler [Grunt] (31) Relay Coupler [Sentry] (19) Relay Coupler [Sentry] (25) Relay Coupler [Sentry] (18) Relay Coupler [Demolisher] (23) Relay Coupler [Demolisher] (19) Relay Coupler [Specialist] (21) Relay Coupler [Hunter] (14) Long-range Tractor Beam Peak State ------------ > --- POWER ------------ Reinforced Deuterium Engine > --- PROPULSION ------- Armored Huge Wheel > --- UTILITY ---------- Advanced Heat Sink Large Storage Unit Advanced Targeting Computer Transmission Jammer Relay Coupler [Swarmer] Relay Coupler [Sentry] Relay Coupler [Hunter] > --- WEAPON ----------- Cooled Particle Cannon Cooled Particle Cannon Remote Datajack > --- INVENTORY -------- Armored Huge Wheel Improved Terrain Scan Processor Core Analyzer Weapon Cycler Relay Coupler [Swarmer] Relay Coupler [Grunt] Relay Coupler [Sentry] Relay Coupler [Sentry] Relay Coupler [Demolisher] Relay Coupler [Specialist] Relay Coupler [Hunter] Relay Coupler [Hunter] Long-range Tractor Beam Improved Spread Laser [Rating: 57] Favorites ----------- Power Reinforced Deuterium Engine Engine Reinforced Deuterium Engine Power Core Light Nuclear Core Propulsion Light Treads Treads Light Treads Leg Aluminum Leg Wheel Armored Huge Wheel Hover Unit Hover Unit Flight Unit VTOL Module Utility Advanced Targeting Computer Device Advanced Heat Sink Storage Large Storage Unit Processor Advanced Targeting Computer Hackware Relay Coupler [Hunter] Protection Improved Light Armor Plating Weapon Cooled Particle Cannon Energy Gun Pulse Rifle Energy Cannon Cooled Particle Cannon Ballistic Gun Assault Rifle Launcher Precision Grenade Launcher Special Weapon Remote Datajack Special Melee Weapon Datajack Build | -11 -10 -9 -8 -7 -7 -7 -7 ------- Run | Scr Mat Mat Mat Fac Gar Fac Gar Slots Evolved 6 | . . 2 2 2 . . . Power . | . . . . . . . . Propulsion . | . . . . . . . . Utility 5 | . . 2 1 2 . . . Weapon 1 | . . . 1 . . . . Parts Attached 107 | . 12 16 11 25 26 10 7 Power 8 | . 1 1 1 3 2 . . Engine 5 | . 1 . . 3 1 . . Core 3 | . . 1 1 . 1 . . Reactor . | . . . . . . . . Propulsion 23 | . 3 6 2 5 5 1 1 Treads 10 | . . 1 2 1 5 . 1 Leg 3 | . . . . 3 . . . Wheel 2 | . 1 . . . . 1 . Hover 5 | . 2 3 . . . . . Flight 3 | . . 2 . 1 . . . Utility 36 | . 1 4 6 7 11 4 3 Device 12 | . 1 . 2 3 4 2 . Storage 2 | . . . 2 . . . . Processor 8 | . . 3 2 2 . 1 . Hackware 8 | . . 1 . . 3 1 3 Protection 6 | . . . . 2 4 . . Artifact . | . . . . . . . . Weapon 40 | . 7 5 2 10 8 5 3 Energy Gun 19 | . 3 3 2 6 4 . 1 Energy Cannon 8 | . . . . 3 3 1 1 Ballistic Gun 7 | . 4 2 . 1 . . . Ballistic Cannon . | . . . . . . . . Launcher 2 | . . . . . . 1 1 Special Weapon 3 | . . . . . . 3 . Impact Weapon . | . . . . . . . . Slashing Weapon . | . . . . . . . . Piercing Weapon . | . . . . . . . . Special Melee Weapon 1 | . . . . . 1 . . Unidentified Prototypes 9 | . . 3 . 5 . 1 . Parts Lost 30 | . 3 6 . 5 10 1 5 Power 2 | . . . . . 2 . . Propulsion 10 | . 1 4 . 2 2 . 1 Utility 8 | . . 1 . 2 5 . . Weapon 10 | . 2 1 . 1 1 1 4 Highest Loss Streak 4 | . 2 2 . 2 4 1 3 To Critical Strikes 2 | . . . . . 2 . . Average Slot Usage (%) 96 | . 92 94 99 99 98 93 83 Engine 5 | . 14 2 . 6 3 7 7 Core 2 | . . 8 9 . 3 . . Treads 8 | . . 1 16 10 13 4 . Leg 3 | . 22 . . 3 . . . Wheel 1 | . 1 . . . . 5 6 Hover 1 | . 3 15 . . . . . Device 8 | . 6 2 9 11 7 11 7 Storage 8 | . 14 11 9 7 7 7 7 Processor 18 | . . 27 27 29 16 9 7 Hackware 7 | . . 1 . . 11 24 25 Protection 3 | . . . . 3 8 . . Energy Gun 11 | . 11 3 20 22 6 2 . Energy Cannon 6 | . . . . . 15 13 5 Ballistic Gun 3 | . 16 17 6 . . . . Naked Turns . | . . . . . . . . Heaviest Build 66 | 10 13 16 35 57 66 55 54 Greatest Support 42 | 20 20 20 42 42 40 40 28 Greatest Overweight (x) 15 | . 2 5 1 15 2 1 1 Average Overweight (x) . | . . 1 . 1 1 1 1 Largest Inventory Capacity 15 | . 8 8 15 15 15 15 15 Average Capacity 13 | . 8 8 10 15 15 15 15 Most Carried 15 | . 8 8 11 15 15 15 15 Average Carried 11 | . 7 7 8 11 13 14 14 Final Capacity 15 | 8 8 8 15 15 15 15 15 Final Carried 15 | 6 8 8 10 12 13 15 14 Class Distribution -------------------- 26% | Scavenger-Gunner 21% | Mutant 21% | Gunner 15% | Scavenger-Mutant 11% | Bothacker-Mutant Dominant Class ---------------- Mutant | -10/Materials Scavenger-Mutant | -9/Materials Scavenger-Gunner | -8/Materials Gunner | -7/Factory Scavenger-Gunner | -7/Garrison Bothacker-Mutant | -7/Factory Bothacker-Mutant | -7/Garrison Resources | -11 -10 -9 -8 -7 -7 -7 -7 ----------- Run | Scr Mat Mat Mat Fac Gar Fac Gar Matter Collected 2310 | 198 324 457 140 329 393 137 332 Remotely 155 | . . . . 155 . . . Salvage Created 4768 | . 707 624 297 1275 1044 330 491 Parts 225 | . 48 46 13 51 34 13 20 Haulers Intercepted 6 | . 1 1 . 3 . 1 . Recyclers Shooed 6 | . 2 . . 4 . . . Parts Field Recycled . | . . . . . . . . Retrieved Matter . | . . . . . . . . Parts Self-Destructed . | . . . . . . . . Prevented . | . . . . . . . . Kills | -11 -10 -9 -8 -7 -7 -7 -7 ------- Run | Scr Mat Mat Mat Fac Gar Fac Gar Combat Hostiles Destroyed 85 | . 11 11 4 27 20 2 10 Guns 57 | . 11 11 4 25 5 . 1 Cannons 18 | . . . . 2 13 1 2 AOE 8 | . . . . . . 1 7 Classes Destroyed 15 | . 8 2 1 2 1 . 1 Worker 4 | . 1 . . 1 . 2 . Builder 4 | . 1 2 . . . 1 . Hauler 6 | . 1 1 . 3 . 1 . Recycler 6 | . 1 . 1 3 . 1 . Mechanic 1 | . . . 1 . . . . Operator 5 | . 2 1 . 1 . 1 . Watcher 5 | . 3 1 1 . . . . Swarmer 16 | . 3 . . 11 2 . . Cutter 3 | . . . . . . . 3 Grunt 45 | . 8 8 3 10 6 3 7 Brawler 8 | . . 1 . 2 5 . . Duelist 2 | . . . . . 1 1 . Sentry 9 | . . 2 1 1 4 . 1 Hunter 2 | . . . . 1 1 . . Programmer 3 | . . . . 2 1 . . Best Kill Streak 6 | . 6 4 3 4 4 4 6 Combat Bots Only 6 | . 3 2 3 4 4 2 6 Max Kills in Single Turn 4 | . 2 1 1 2 1 4 2 Gunslinging . | . . . . . . . . Exploded 2 | . . . . . . 1 2 Melee . | . . . . . . . . Uniques/NPCs Destroyed . | . . . . . . . . Combat | -11 -10 -9 -8 -7 -7 -7 -7 -------- Run | Scr Mat Mat Mat Fac Gar Fac Gar Damage Taken 5604 | . 471 561 256 1345 1635 372 964 Core 982 | . 79 201 . 189 196 52 265 Absorbed by Shields . | . . . . . . . . Redirected to Shielding 120 | . . . . 53 67 . . Core Remaining (%) 79 | 100 68 49 100 . . . . Volleys Fired 348 | . 73 51 18 83 62 17 44 Largest 3 | . 2 2 3 3 3 3 2 Hottest 230 | . 60 86 189 230 140 140 126 Shots Fired 676 | . 130 95 50 152 168 33 48 Gun 469 | . 130 95 50 144 40 3 7 Cannon 183 | . . . . 8 128 24 23 Launcher 8 | . . . . . . 2 6 Special 16 | . . . . . . 4 12 Kinetic 194 | . 86 93 15 . . . . Thermal 414 | . . 2 35 152 168 27 30 Explosive 8 | . . . . . . 2 6 Electromagnetic 44 | . 44 . . . . . . Robot Hit Streak 35 | . 9 8 35 21 20 11 22 Robot Miss Streak 7 | . 6 3 1 7 4 7 2 Penetration Max . | . . . . . . . . Secondary Targets 8 | . 2 2 1 3 . . . Max Gunslinging Chain 1 | . 1 1 1 1 . . . Shots Hit Robots 467 | . 78 58 40 130 110 19 32 Core Hits 278 | . 31 27 13 104 53 14 36 Critical Kills . | . . . . . . . . Critical Parts Destroyed . | . . . . . . . . Critical Strikes 7 | . 3 . . 4 . . . Burn 4 | . . . . 4 . . . Corrupt 3 | . 3 . . . . . . Melee Attacks 3 | . . . . . 3 . . Impact . | . . . . . . . . Slashing . | . . . . . . . . Piercing . | . . . . . . . . Sneak Attacks . | . . . . . . . . Combat Hostiles . | . . . . . . . . Follow-up Attacks . | . . . . . . . . Damage Inflicted 10406 | . 1057 819 668 2770 2755 663 1674 Guns 5932 | . 1019 788 668 2579 619 52 207 Cannons 3214 | . . . . 191 2133 380 510 Explosions 1248 | . 38 31 . . . 225 954 Melee . | . . . . . . . . Ramming 12 | . . . . . 3 6 3 Kinetic 1580 | . 633 771 176 . . . . Thermal 7218 | . 38 17 492 2770 2752 432 717 Explosive 1210 | . . 31 . . . 225 954 Electromagnetic 386 | . 386 . . . . . . Impact . | . . . . . . . . Slashing . | . . . . . . . . Piercing . | . . . . . . . . Highest Corruption 21 | . 2 4 1 1 18 21 21 Average Corruption 13 | . 2 3 1 1 14 20 21 Corruption Purged . | . . . . . . . . Corruption Blocked . | . . . . . . . . Effects 146 | . . 8 . 2 79 36 21 Message Errors 28 | . . 3 . . 18 4 3 Matter Fused 43 | . . 2 . . 25 11 5 Heat Flow Errors 13 | . . . . 1 5 7 . Energy Discharges 18 | . . 1 . . 9 5 3 Parts Rejected 3 | . . . . . 2 . 1 Data Loss (minor) 13 | . . . . . 9 4 . Data Loss (major) 3 | . . . . . 3 . . Misfires 10 | . . . . . 4 3 3 Alerts 4 | . . . . 1 2 1 . Misdirections 3 | . . . . . 1 . 2 Weapon Failures 8 | . . 2 . . 1 1 4 Overload Shots 5 | . . . . . 1 . 4 Overflow Damage 66 | . 8 7 . 15 30 1 5 Projectiles 51 | . . . . 15 30 1 5 Explosions 15 | . 8 7 . . . . . Melee . | . . . . . . . . Knockbacks . | . . . . . . . . Impact . | . . . . . . . . Kinetic . | . . . . . . . . Secondary . | . . . . . . . . Self-Inflicted Damage 68 | . . 33 . . . 3 32 Shots 2 | . . 1 . . . . 1 Rammed 3 | . . . . . 1 1 1 Targets Rammed 3 | . . . . . 1 1 1 Kicked . | . . . . . . . . Crushed . | . . . . . . . . Highest Temperature 453 | . 102 27 152 423 453 256 10 Average Temperature 96 | . 59 12 55 105 112 85 6 Received Heat Transfer 1719 | . 234 264 144 351 360 81 285 Effects 5 | . . . . 2 3 . . Shutdowns 3 | . . . . 1 2 . . Energy Bleed 1 | . . . . . 1 . . Matter Decay 1 | . . . . 1 . . . Siege Activations . | . . . . . . . . Robots Corrupted . | . . . . . . . . Combat Hostiles . | . . . . . . . . Parts Fried 2 | . 2 . . . . . . Impact Corruptions . | . . . . . . . . Robots Melted 2 | . . . . . 2 . . Combat Hostiles 2 | . . . . . 2 . . Parts Melted 23 | . . . 2 7 12 1 1 Heat Transferred 11262 | . 50 37 1073 4844 3785 643 830 Parts Sabotaged . | . . . . . . . . Parts Stolen . | . . . . . . . . Parts Stripped . | . . . . . . . . Power Chain Reactions 1 | . 1 . . . . . . Missiles Intercepted . | . . . . . . . . Alert | -11 -10 -9 -8 -7 -7 -7 -7 ------- Run | Scr Mat Mat Mat Fac Gar Fac Gar Peak Influence 837 | . 275 509 317 308 837 748 818 Initial 438 | . . 52 141 75 215 438 418 Average 352 | . 104 296 204 161 583 569 626 Maximum Alert Level 3 | . 1 2 1 1 3 3 3 Low Security (%) 35 | . 76 23 57 71 . . . Level 1 23 | . 23 50 42 28 16 . 4 Level 2 31 | . . 25 . . 60 88 53 Level 3 9 | . . . . . 23 11 42 Level 4 . | . . . . . . . . Level 5 . | . . . . . . . . High Security . | . . . . . . . . Max Security . | . . . . . . . . Squads Dispatched 20 | . 3 1 . 12 . 4 . Investigation 1 | . . . . . . 1 . Extermination 4 | . . . . 2 . 2 . Reinforcement 8 | . 3 1 . 3 . 1 . Assault . | . . . . . . . . Garrison 7 | . . . . 7 . . . Intercept . | . . . . . . . . Searches Triggered . | . . . . . . . . Construction Impeded . | . . . . . . . . Haulers Reinforced 2 | . . . . 2 . . . Active Scanning Responses . | . . . . . . . . Cargo Convoy Interrupts . | . . . . . . . . Stealth | -11 -10 -9 -8 -7 -7 -7 -7 --------- Run | Scr Mat Mat Mat Fac Gar Fac Gar Distress Signals 5 | . 2 1 . 1 . 1 . Communications Jammed . | . . . . . . . . Distress Signals . | . . . . . . . . Times Spotted 135 | . 18 15 7 33 25 14 23 Peak Tracking Total 7 | . 5 4 3 4 5 4 7 Tactical Retreats 5 | . . 1 . 1 2 . 1 Traps | -11 -10 -9 -8 -7 -7 -7 -7 ------- Run | Scr Mat Mat Mat Fac Gar Fac Gar Traps Triggered 15 | . 2 1 1 2 5 2 2 Indirectly . | . . . . . . . . Trap Hack Attempts . | . . . . . . . . Triggered . | . . . . . . . . Disarmed . | . . . . . . . . Reprogrammed . | . . . . . . . . Reused . | . . . . . . . . Traps Extracted . | . . . . . . . . Installed . | . . . . . . . . Triggered . | . . . . . . . . Machines | -11 -10 -9 -8 -7 -7 -7 -7 ---------- Run | Scr Mat Mat Mat Fac Gar Fac Gar Machines Disabled 10 | . 1 2 . . 3 1 3 Max in Single Turn 1 | . 1 1 . . 1 1 1 Garrison Relay 5 | . . . . . 3 . 2 Machines Sabotaged . | . . . . . . . . Garrisons Compromised . | . . . . . . . . Overloaded Fab Kills . | . . . . . . . . Hacking | -11 -10 -9 -8 -7 -7 -7 -7 --------- Run | Scr Mat Mat Mat Fac Gar Fac Gar Machines Accessed 19 | . 3 3 4 4 . 5 . Terminals 15 | . 3 3 4 2 . 3 . Fabricators 1 | . . . . . . 1 . Repair Stations . | . . . . . . . . Recycling Units . | . . . . . . . . Scanalyzers 1 | . . . . 1 . . . Garrison Access 2 | . . . . 1 . 1 . Total Hacks 44 | . 8 7 12 9 . 8 . Successful 23 | . 4 3 8 4 . 4 . Failed 21 | . 4 4 4 5 . 4 . Catastrophic 4 | . . 1 . 2 . 1 . Database Lockouts . | . . . . . . . . Manual 15 | . 4 3 3 5 . . . Terminals 37 | . 8 7 12 6 . 4 . Fabricators 3 | . . . . . . 3 . Repair Stations . | . . . . . . . . Recycling Units . | . . . . . . . . Scanalyzers 2 | . . . . 2 . . . Garrison Access 2 | . . . . 1 . 1 . Terminal Hacks 16 | . 3 3 8 1 . 1 . Part Schematic 1 | . . . . 1 . . . Prototype ID Bank 2 | . . . 2 . . . . Open DSF 1 | . . . . . . 1 . Level Access Points 2 | . . 1 1 . . . . Branch Access Points 1 | . . 1 . . . . . Emergency Access Points 1 | . . . 1 . . . . Alert Level 2 | . 1 . 1 . . . . Dispatch Records 1 | . . . 1 . . . . Hauler Manifests 1 | . . . 1 . . . . Registered Components 2 | . 1 . 1 . . . . Zone Layout 2 | . 1 1 . . . . . Fabricator Hacks 2 | . . . . . . 2 . Load Schematic 1 | . . . . . . 1 . Build 1 | . . . . . . 1 . Repair Station Hacks . | . . . . . . . . Recycling Unit Hacks . | . . . . . . . . Scanalyzer 2 | . . . . 2 . . . Insert Component 1 | . . . . 1 . . . Analyze 1 | . . . . 1 . . . Garrison Access Hacks 2 | . . . . 1 . 1 . Unlock Access 2 | . . . . 1 . 1 . Unauthorized Hacks 1 | . 1 . . . . . . Terminals 1 | . 1 . . . . . . Track 1 | . 1 . . . . . . Fabricators . | . . . . . . . . Repair Stations . | . . . . . . . . Recycling Units . | . . . . . . . . Scanalyzers . | . . . . . . . . Garrison Access . | . . . . . . . . Data Cores Recovered 1 | . . . . . . 1 . Used . | . . . . . . . . Hacking Detections 17 | . 2 3 4 4 . 4 . Full Trace Events 1 | . . . . . . 1 . Feedback Events . | . . . . . . . . Feedback Blocked . | . . . . . . . . Robot Schematics Acquired . | . . . . . . . . Robots Built 3 | . . . . . . 3 . Authchips . | . . . . . . . . Time 99 | . . . . . . 99 . Total Robot Build Rating 6 | . . . . . . 6 . Part Schematics Acquired 2 | . . . . 2 . . . Parts Built . | . . . . . . . . Authchips . | . . . . . . . . Time . | . . . . . . . . Total Part Build Rating . | . . . . . . . . Parts Repaired . | . . . . . . . . Time . | . . . . . . . . Parts Recycled . | . . . . . . . . Recycled Matter . | . . . . . . . . Retrieved Matter . | . . . . . . . . Retrieved Components . | . . . . . . . . Parts Scanalyzed 1 | . . . . 1 . . . Part Schematics Acquired 1 | . . . . 1 . . . Parts Damaged . | . . . . . . . . Bothacking | -11 -10 -9 -8 -7 -7 -7 -7 ------------ Run | Scr Mat Mat Mat Fac Gar Fac Gar Used RIF Installer 2 | . . . . . 1 . 1 Patrol Navigation 1 | . . . . . . . 1 Robots Hacked 12 | . . . . . 2 2 8 Non-combat . | . . . . . . . . Combat 12 | . . . . . 2 2 8 Robot Hacks Applied 12 | . . . . . 2 2 8 wipe_record 1 | . . . . . . . 1 go_dormant 2 | . . . . . . . 2 streamctrl_high 1 | . . . . . . . 1 formatsys_high 8 | . . . . . 2 2 4 Relay Couplers Released 22 | . . . . . 15 . 7 Machine Destruction 22 | . . . . . 15 . 7 Attached 7 | . . . . . 3 1 3 Fabnet Peak Effective % . | . . . . . . . . Robots Rewired 6 | . . . . . 6 . . Allies Hacked . | . . . . . . . . Hacks Repelled . | . . . . . . . . Allies | -11 -10 -9 -8 -7 -7 -7 -7 -------- Run | Scr Mat Mat Mat Fac Gar Fac Gar Total Allies 18 | . . . . . 8 5 5 Largest Group 9 | . . . . . 6 9 6 Highest-Rated Group 222 | . . . . . 180 222 140 Highest-Rated Ally 32 | . . . . . 30 32 32 Total Orders . | . . . . . . . . Ally Attacks 80 | . . . . . 8 42 30 Total Damage 2070 | . . . . . 195 1220 655 Kills 22 | . . . . . 2 12 8 Allies Corrupted . | . . . . . . . . Allies Melted . | . . . . . . . . Intel | -11 -10 -9 -8 -7 -7 -7 -7 ------- Run | Scr Mat Mat Mat Fac Gar Fac Gar Robot Analysis Total . | . . . . . . . . Derelict Logs Recovered . | . . . . . . . . Drone Launches . | . . . . . . . . Drone Recoveries . | . . . . . . . . Exploration | -11 -10 -9 -8 -7 -7 -7 -7 ------------- Run | Scr Mat Mat Mat Fac Gar Fac Gar Turns Passed 6923 | . 817 578 610 1933 1866 805 314 Spaces Moved 2981 | 1 474 286 317 711 612 423 157 Core 23 | . . 15 . 8 . . . Treads 1553 | . . 39 317 520 585 91 1 Legs 562 | 1 351 . . 183 27 . . Wheels 514 | . 26 . . . . 332 156 Hover 329 | . 97 232 . . . . . Flight . | . . . . . . . . Fastest Speed 95 | 120 95 116 157 157 240 115 115 Average Speed 181 | 120 121 136 165 227 247 141 115 Slowest Speed 800 | 120 185 300 250 800 320 240 225 Overloaded Moves . | . . . . . . . . Propulsion Burnouts . | . . . . . . . . Robots Hopped . | . . . . . . . . Cave-ins Triggered . | . . . . . . . . Exploration Rate (%) 36 | 2 73 25 28 25 71 15 50 Regions Visited 7 Branch Regions . Pre-discovered Areas . | . . . . . . . . Known Exits Taken 4 | . . 1 1 1 . 1 . Unknown Exits Taken 2 | 1 1 . . . . . . Scrap Searched . | . . . . . . . . Spaces Dug . | . . . . . . . . Terrain Destroyed 95 | . 2 44 . . . 17 32 Melee . | . . . . . . . . Projectile 4 | . . . . . . 3 1 AOE 91 | . 2 44 . . . 14 31 Terrain Rammed . | . . . . . . . . Walls Destroyed . | . . . . . . . . Machines Disabled . | . . . . . . . . Actions | -11 -10 -9 -8 -7 -7 -7 -7 --------- Run | Scr Mat Mat Mat Fac Gar Fac Gar Total 3889 | . 583 378 364 890 829 600 245 Wait 189 | . 3 . 1 39 10 135 1 Move 2975 | . 473 285 316 711 610 423 157 Hop . | . . . . . . . . Pick Up 90 | . 13 14 11 19 23 6 4 Fast Attach 19 | . 3 6 1 2 1 4 2 Attach 46 | . 4 7 4 11 12 3 5 Detach . | . . . . . . . . Swap 42 | . 5 3 6 12 13 3 . Drop 57 | . 9 12 7 11 10 8 . Fire 348 | . 73 51 18 83 62 17 44 Melee 3 | . . . . . 3 . . Ram 2 | . . . . . . 1 1 Kick . | . . . . . . . . Crush 1 | . . . . . 1 . . Escape Stasis 24 | . . . . 2 6 . 16 Rewire 93 | . . . . . 78 . 15 Trap . | . . . . . . . . Miscellaneous . | . . . . . . . . Route ------- -11/Scrapyard -10/Materials (discovered 2 exits: *Mat / [*Min]) -9/Materials (discovered 4 exits: *Mat x3 / Min) -8/Materials (discovered 3 exits: *Fac x3) -7/Factory -7/Garrison (discovered 2 exits: *Fac x2) -7/Factory (discovered 3 exits: [*Fac] / [*Low] / Gar) -7/Garrison (discovered 1 exit: [*Fac]) History --------- Turn | Location | Event 1 | -11/Scrapyard | Discovered new exit (range 0) 1 | -11/Scrapyard | Entered Materials 53 | -10/Materials | Discovered new exit (range 15) 306 | -10/Materials | Build established: Mutant 764 | -10/Materials | Discovered new exit (range 14) 818 | -10/Materials | Entered another Materials area 818 | -9/Materials | Evolved 2 slots: Utility x2 991 | -9/Materials | Identified exit to Materials 1028 | -9/Materials | Build established: Scavenger-Mutant 1075 | -9/Materials | Identified exit to Mines 1283 | -9/Materials | Core integrity fell below 50% 1396 | -9/Materials | Entered another Materials area 1396 | -8/Materials | Evolved 2 slots: Utility x1, Weapon x1 1700 | -8/Materials | Build established: Scavenger-Gunner 1878 | -8/Materials | Identified exit to Factory 2006 | -8/Materials | Entered Factory 2006 | -7/Factory | Evolved 2 slots: Utility x2 2104 | -7/Factory | Build established: Gunner 2194 | -7/Factory | Garrison activated, responded to threat 2817 | -7/Factory | Garrison activated, responded to threat 3509 | -7/Factory | Build established: Mutant 3836 | -7/Factory | Garrison activated, responded to threat 3939 | -7/Factory | Identified exit to Garrison 3939 | -7/Factory | Entered Garrison 3985 | -7/Garrison | Installed Relay Interface Framework 4034 | -7/Garrison | System corruption reached 10% 4067 | -7/Garrison | Lost 4 parts (1n3u) 4232 | -7/Garrison | Triggered checkpoint 4236 | -7/Garrison | Triggered checkpoint 4364 | -7/Garrison | Triggered checkpoint 4384 | -7/Garrison | Build established: Scavenger-Gunner 4492 | -7/Garrison | Garrison Relay disabled 4555 | -7/Garrison | Discovered new exit (range 9) 4728 | -7/Garrison | Discovered new exit (range 9) 4786 | -7/Garrison | Triggered checkpoint 4827 | -7/Garrison | Garrison Relay disabled 5115 | -7/Garrison | Garrison Relay disabled 5128 | -7/Garrison | Core integrity fell below 50% 5308 | -7/Garrison | Triggered checkpoint 5336 | -7/Garrison | Triggered checkpoint 5360 | -7/Garrison | Triggered checkpoint 5421 | -7/Garrison | Lost 3 parts (1p1n1u) 5805 | -7/Garrison | Entered Factory 5805 | -7/Factory | Accompanied by 6 allies 6100 | -7/Factory | Discovered new exit (range 5) 6223 | -7/Factory | Discovered new exit (range 2) 6355 | -7/Factory | Fabricated L-31 Rogue (x3) 6385 | -7/Factory | Build established: Bothacker-Mutant 6577 | -7/Factory | Identified exit to Garrison 6610 | -7/Factory | Entered Garrison 6610 | -7/Garrison | Accompanied by 5 allies 6616 | -7/Garrison | Expanded RIF knowledge: Patrol Navigation 6644 | -7/Garrison | Triggered checkpoint 6705 | -7/Garrison | Triggered checkpoint 6764 | -7/Garrison | Discovered new exit (range 8) 6782 | -7/Garrison | Triggered checkpoint 6796 | -7/Garrison | Garrison Relay disabled 6800 | -7/Garrison | Core integrity fell below 20% 6862 | -7/Garrison | Triggered checkpoint 6886 | -7/Garrison | Garrison Relay disabled 6924 | -7/Garrison | Destroyed by Y-54 Guardian with Gatling Laser Last Messages --------------- 06866_ System corrupted: Energy discharge (-101). 06877_ Imp. Ion Engine melted. 06877_ C-30 ARC destroyed. 06878_ Soldier 4a destroyed. 06883_ I9EH6&I=E